fUSD/lending_fUSD_20240625
["ID","MTS","AMOUNT","RATE_DAILY","PERIOD"]
[330364833,1719335446448,-3400.51,0.00019178,2]
[330364834,1719335446458,-500.0,0.00019178,2]
[330364835,1719335446468,-500.0,0.00019178,2]
[330364836,1719335446481,-1237.27,0.00019178,2]
[330364837,1719335446490,-500.0,0.00019178,2]
[330364838,1719335446500,-500.0,0.00019178,2]
[330364839,1719335446522,-500.0,0.00019178,2]
[330364840,1719335446539,-500.0,0.00019178,2]
[330364841,1719335446558,-500.0,0.00019178,2]
[330364842,1719335446577,-500.0,0.00019178,2]
[330364843,1719335446599,-500.0,0.00019178,2]
[330364844,1719335446618,-1382.32,0.00019178,2]
[330364845,1719335446639,-500.0,0.00019178,2]
[330364846,1719335446654,-500.0,0.00019178,2]
[330364847,1719335446672,-1917.76,0.00019178,2]
[330364848,1719335446693,-500.0,0.00019178,2]
[330364849,1719335446713,-500.0,0.00019178,2]
[330364850,1719335446725,-4290.73,0.00019178,2]
[330364851,1719335446744,-500.0,0.00019178,2]
[330364852,1719335446758,-500.0,0.00019178,2]
[330364853,1719335446776,-500.0,0.00019178,2]
[330364854,1719335446792,-954.4,0.00019178,2]
[330364855,1719335446807,-890.9,0.00019178,2]
[330364856,1719335446823,-2347.92,0.00019178,2]
[330364857,1719335446839,-500.0,0.00019178,2]
[330364858,1719335446854,-500.0,0.00019178,2]
[330364859,1719335446877,-277.05040573,0.00019178,2]
[330364860,1719335446893,-5148.54,0.00019178,2]
[330364861,1719335446908,-500.0,0.00019178,2]
[330364862,1719335446924,-2684.5,0.00019178,2]
[330364863,1719335446941,-500.0,0.00019178,2]
[330364864,1719335446957,-500.0,0.00019178,2]
[330364865,1719335446972,-500.0,0.00019178,2]
[330364866,1719335446988,-500.0,0.00019178,2]
[330364867,1719335447003,-500.0,0.00019178,2]
[330364868,1719335447020,-1978.77,0.00019178,2]
[330364869,1719335447035,-500.0,0.00019178,2]
[330364870,1719335447050,-585.96,0.00019178,2]
[330364871,1719335447065,-500.0,0.00019178,2]
[330364872,1719335447081,-1259.52,0.00019178,2]
[330364873,1719335447096,-3321.49,0.00019178,2]
[330364874,1719335447111,-5002.01,0.00019178,2]
[330364875,1719335447127,-500.0,0.00019178,2]
[330364876,1719335447142,-1379.95,0.00019178,2]
[330364877,1719335447158,-1121.33,0.00019178,2]
[330364878,1719335447174,-500.0,0.00019178,2]
[330364879,1719335447191,-500.0,0.00019178,2]
[330364880,1719335447207,-1926.17,0.00019178,2]
[330364881,1719335447222,-500.0,0.00019178,2]
[330364882,1719335447237,-1926.17,0.00019178,2]
[330364883,1719335447252,-500.0,0.00019178,2]
[330364884,1719335447268,-500.0,0.00019178,2]
[330364885,1719335447284,-1926.17,0.00019178,2]
[330364886,1719335447299,-1926.17,0.00019178,2]
[330364887,1719335447318,-601.88,0.00019178,2]
[330364888,1719335447334,-538.11163384,0.00019178,2]
[330364889,1719335447349,-500.0,0.00019178,2]
[330364890,1719335447365,-4663.5,0.00019178,2]
[330364891,1719335447382,-1926.17,0.00019178,2]
[330364892,1719335447398,-1926.17,0.00019178,2]
[330364893,1719335447415,-1926.17,0.00019178,2]
[330364894,1719335447433,-500.0,0.00019178,2]
[330364895,1719335447447,-1926.17,0.00019178,2]
[330364896,1719335447462,-1926.17,0.00019178,2]
[330364897,1719335447477,-1926.17,0.00019178,2]
[330364898,1719335447492,-500.0,0.00019178,2]
[330364899,1719335447508,-1926.17,0.00019178,2]
[330364900,1719335447524,-1926.17,0.00019178,2]
[330364901,1719335447539,-1926.17,0.00019178,2]
[330364902,1719335447555,-1926.17,0.00019178,2]
[330364903,1719335447570,-1926.17,0.00019178,2]
[330364904,1719335447585,-500.0,0.00019178,2]
[330364905,1719335447601,-500.0,0.00019178,2]
[330364906,1719335447616,-2075.25,0.00019178,2]
[330364907,1719335447632,-802.03,0.00019178,2]
[330364908,1719335447647,-3888.14,0.00019178,2]
[330364909,1719335447662,-500.0,0.00019178,2]
[330364910,1719335447678,-500.0,0.00019178,2]
[330364911,1719335447694,-500.0,0.00019178,2]
[330364912,1719335447709,-1072.18,0.00019178,2]
[330364913,1719335447724,-481.84448634,0.00019178,2]
[330364914,1719335447740,-500.0,0.00019178,2]
[330364915,1719335447755,-1956.54,0.00019178,2]
[330364916,1719335447770,-334.05243147,0.00019178,2]
[330364917,1719335447787,-4943.55,0.00019178,2]
[330364918,1719335447803,-500.0,0.00019178,2]
[330364919,1719335447820,-500.0,0.00019178,2]
[330364920,1719335447836,-614.33,0.00019178,2]
[330364921,1719335447852,-645.17,0.00019178,2]
[330364922,1719335447869,-500.0,0.00019178,2]
[330364923,1719335447885,-500.0,0.00019178,2]
[330364924,1719335447900,-2620.61,0.00019178,2]
[330364925,1719335447917,-500.0,0.00019178,2]
[330364926,1719335447933,-500.0,0.00019178,2]
[330364927,1719335447949,-500.0,0.00019178,2]
[330364928,1719335447964,-500.0,0.00019178,2]
[330364929,1719335447979,-500.0,0.00019178,2]
[330364930,1719335447995,-518.36,0.00019178,2]
[330364931,1719335448010,-500.0,0.00019178,2]
[330364932,1719335448025,-500.0,0.00019178,2]
[330364933,1719335448039,-1468.63,0.00019178,2]
[330364934,1719335448054,-757.41,0.00019178,2]
[330364935,1719335448070,-3837.07,0.00019178,2]
[330364936,1719335448085,-500.0,0.00019178,2]
[330364937,1719335448100,-2908.03,0.00019178,2]
[330364938,1719335448115,-256.82342222,0.00019178,2]
[330364939,1719335449292,-243.17657778,0.00019178,2]
[330364940,1719335449303,-457.64272771,0.00019178,2]
[330364941,1719335449328,-43.63353775,0.00019178,2]
[330364942,1719335449338,-570.33,0.00019178,2]
[330364943,1719335449349,-302.96086748,0.00019178,2]
[330364944,1719335449361,-197.03913252,0.00019178,2]
[330364945,1719335449370,-500.0,0.00019178,2]
[330364946,1719335449380,-1105.09,0.00019178,2]
[330364947,1719335449391,-500.0,0.00019178,2]
[330364948,1719335449401,-500.0,0.00019178,2]
[330364949,1719335449413,-500.0,0.00019178,2]
[330364950,1719335449423,-472.13671615,0.00019178,2]
[330364951,1719335449434,-676.17,0.00019178,2]
[330364952,1719335449446,-500.0,0.00019178,2]
[330364953,1719335449456,-568.76,0.00019178,2]
[330364954,1719335449467,-3093.3,0.00019178,2]
[330364955,1719335449479,-500.0,0.00019178,2]
[330364956,1719335449488,-500.0,0.00019178,2]
[330364957,1719335449498,-943.29,0.00019178,2]
[330364958,1719335449507,-4449.26,0.00019178,2]
[330364959,1719335449517,-500.0,0.00019178,2]
[330364960,1719335449526,-500.0,0.00019178,2]
[330364961,1719335449536,-517.6,0.00019178,2]
[330364962,1719335449547,-500.0,0.00019178,2]
[330364963,1719335449558,-3063.84,0.00019178,2]
[330364964,1719335449568,-500.0,0.00019178,2]
[330364965,1719335449577,-500.0,0.00019178,2]
[330364966,1719335449587,-500.0,0.00019178,2]
[330364967,1719335449597,-549.26,0.00019178,2]
[330364968,1719335449606,-803.58,0.00019178,2]
[330364969,1719335449615,-500.0,0.00019178,2]
[330364970,1719335449624,-500.0,0.00019178,2]
[330364971,1719335449633,-500.0,0.00019178,2]
[330364972,1719335449642,-721.64,0.00019178,2]
[330364973,1719335449652,-500.0,0.00019178,2]
[330364974,1719335449661,-500.0,0.00019178,2]
[330364975,1719335449671,-1996.48,0.00019178,2]
[330364976,1719335449681,-5038.67,0.00019178,2]
[330364977,1719335449690,-500.0,0.00019178,2]
[330364978,1719335449700,-536.0025291,0.00019178,2]
[330364979,1719335449710,-3275.34,0.00019178,2]
[330364980,1719335449719,-412.84573568,0.00019178,2]
[330364981,1719335449729,-500.0,0.00019178,2]
[330364982,1719335449738,-3519.28,0.00019178,2]
[330364983,1719335449748,-1338.8,0.00019178,2]
[330364984,1719335449757,-888.49,0.00019178,2]
[330364985,1719335449767,-500.0,0.00019178,2]
[330364986,1719335449776,-2174.94,0.00019178,2]
[330364987,1719335449786,-500.0,0.00019178,2]
[330364988,1719335449795,-774.83,0.00019178,2]
[330364989,1719335449805,-2787.96,0.00019178,2]
[330364990,1719335449815,-990.41,0.00019178,2]
[330364991,1719335449824,-500.0,0.00019178,2]
[330364992,1719335449834,-26314.21,0.00019178,2]
[330364993,1719335449844,-500.0,0.00019178,2]
[330364994,1719335449853,-500.0,0.00019178,2]
[330364995,1719335449864,-500.0,0.00019178,2]
[330364996,1719335449873,-1375.96,0.00019178,2]
[330364997,1719335449883,-500.0,0.00019178,2]
[330364998,1719335449892,-882.68,0.00019178,2]
[330364999,1719335449903,-1910.19,0.00019178,2]
[330365000,1719335449913,-500.0,0.00019178,2]
[330365001,1719335449922,-500.0,0.00019178,2]
[330365002,1719335449933,-500.0,0.00019178,2]
[330365003,1719335449943,-500.0,0.00019178,2]
[330365004,1719335449953,-500.0,0.00019178,2]
[330365005,1719335449962,-543.80395566,0.00019178,2]
[330365006,1719335449972,-500.0,0.00019178,2]
[330365007,1719335449982,-500.0,0.00019178,2]
[330365008,1719335449991,-500.0,0.00019178,2]
[330365009,1719335450000,-250.0,0.00019178,2]
[330365010,1719335450009,-500.0,0.00019178,2]
[330365011,1719335450020,-500.0,0.00019178,2]
[330365012,1719335450030,-500.0,0.00019178,2]
[330365013,1719335450040,-1675.34,0.00019178,2]
[330365014,1719335450050,-4200.44,0.00019178,2]
[330365015,1719335450059,-630.07,0.00019178,2]
[330365016,1719335450068,-4529.59,0.00019178,2]
[330365017,1719335450077,-500.0,0.00019178,2]
[330365018,1719335450087,-500.0,0.00019178,2]
[330365019,1719335450096,-500.0,0.00019178,2]
[330365020,1719335450106,-500.0,0.00019178,2]
[330365021,1719335450115,-2116.01,0.00019178,2]
[330365022,1719335450124,-2406.44,0.00019178,2]
[330365023,1719335450135,-500.0,0.00019178,2]
[330365024,1719335450147,-1191.55,0.00019178,2]
[330365025,1719335450157,-500.0,0.00019178,2]
[330365026,1719335450166,-2727.59576551,0.00019178,2]
[330365027,1719335451131,-328.98061503,0.00019178,2]
[330365028,1719335451143,-3123.69361946,0.00019178,2]
[330365029,1719335451152,-500.0,0.00019178,2]
[330365030,1719335451162,-500.0,0.00019178,2]
[330365031,1719335451171,-500.0,0.00019178,2]
[330365032,1719335451180,-162.75552304,0.00019178,2]
[330365033,1719335451193,-354.99447696,0.00019178,2]
[330365034,1719335451202,-10.01968983,0.00019178,2]
[330365035,1719335451214,-489.98031017,0.00019178,2]
[330365036,1719335451223,-500.0,0.00019178,2]
[330365037,1719335451232,-377.28695295,0.00019178,2]
[330365038,1719335451244,-122.71304705,0.00019178,2]
[330365039,1719335451254,-257.47757311,0.00019178,2]
[330365040,1719335451265,-242.52242689,0.00019178,2]
[330365041,1719335451274,-500.0,0.00019178,2]
[330365042,1719335451283,-135.07834697,0.00019178,2]
[330365043,1719335451295,-364.92165303,0.00019178,2]
[330365044,1719335451305,-500.0,0.00019178,2]
[330365045,1719335451318,-500.0,0.00019178,2]
[330365046,1719335451327,-500.0,0.00019178,2]
[330365047,1719335451337,-500.0,0.00019178,2]
[330365048,1719335451347,-321.07834697,0.00019178,2]
[330365049,1719335451457,-222.01165303,0.00019178,2]
[330365050,1719335451467,-6407.87,0.00019178,2]
[330365051,1719335451476,-3740.03,0.00019178,2]
[330365052,1719335451486,-500.0,0.00019178,2]
[330365053,1719335451495,-721.51750565,0.00019178,2]
[330365054,1719335451507,-5213.2416444,0.00019178,2]
[330365055,1719335451518,-7446.93084995,0.00019178,2]
[330365056,1719335451528,-500.0,0.00019178,2]
[330365057,1719335451537,-586.68,0.00019178,2]
[330365058,1719335451547,-3129.94915005,0.00019178,2]
[330365059,1719335451558,-1573.73084995,0.00019178,2]
[330365060,1719335451567,-500.0,0.00019178,2]
[330365061,1719335451577,-500.0,0.00019178,2]
[330365062,1719335451586,-1023.83535421,0.00019178,2]
[330365063,1719335451598,-2098.78464579,0.00019178,2]
[330365064,1719335451607,-500.0,0.00019178,2]
[330365065,1719335451617,-354.42009793,0.00019178,2]
[330365066,1719335451626,-608.52,0.00019178,2]
[330365067,1719335451635,-80.12643087,0.00019178,2]
[330365068,1719335451647,-264.135,0.00019178,2]
[330365069,1719335451658,-155.73856913,0.00019178,2]
[330365070,1719335451667,-500.0,0.00019178,2]
[330365071,1719335451677,-1000.0,0.00019178,2]
[330365072,1719335451686,-500.0,0.00019178,2]
[330365073,1719335451695,-1312.18,0.00019178,2]
[330365074,1719335451704,-500.0,0.00019178,2]
[330365075,1719335451713,-83.49946699,0.00019178,2]
[330365076,1719335451725,-416.50053301,0.00019178,2]
[330365077,1719335451735,-292.58212911,0.00019178,2]
[330365078,1719335451746,-1666.99787089,0.00019178,2]
[330365079,1719335451755,-1453.98,0.00019178,2]
[330365080,1719335451765,-1553.29537444,0.00019178,2]
[330365081,1719335452458,-515.0,0.00019178,2]
[330365082,1719335452467,-9434.98462556,0.00019178,2]
[330365083,1719335452481,-500.0,0.00019178,2]
[330365084,1719335452490,-500.0,0.00019178,2]
[330365085,1719335452500,-500.0,0.00019178,2]
[330365086,1719335452510,-999.06,0.00019178,2]
[330365087,1719335452519,-500.0,0.00019178,2]
[330365088,1719335452529,-3675.07,0.00019178,2]
[330365089,1719335452539,-500.0,0.00019178,2]
[330365090,1719335452549,-306.3468517,0.00019178,2]
[330365091,1719335452558,-1888.15,0.00019178,2]
[330365092,1719335452568,-2862.33,0.00019178,2]
[330365093,1719335452578,-500.0,0.00019178,2]
[330365094,1719335452587,-500.0,0.00019178,2]
[330365095,1719335452597,-578.7,0.00019178,2]
[330365096,1719335452606,-1434.87,0.00019178,2]
[330365097,1719335452616,-500.0,0.00019178,2]
[330365098,1719335452626,-500.0,0.00019178,2]
[330365099,1719335452635,-968.24,0.00019178,2]
[330365100,1719335452645,-500.0,0.00019178,2]
[330365101,1719335452654,-500.0,0.00019178,2]
[330365102,1719335452663,-1050.18,0.00019178,2]
[330365103,1719335452672,-2500.0,0.00019178,3]
[330365104,1719335452681,-2577.28,0.00019178,2]
[330365105,1719335452694,-500.0,0.00019178,2]
[330365106,1719335452703,-500.0,0.00019178,2]
[330365107,1719335452713,-3300.05,0.00019178,2]
[330365108,1719335452722,-1161.2,0.00019178,2]
[330365109,1719335452731,-500.0,0.00019178,2]
[330365110,1719335452740,-740.26,0.00019178,2]
[330365111,1719335452749,-2017.7,0.00019178,2]
[330365112,1719335452758,-500.0,0.00019178,2]
[330365113,1719335452768,-500.0,0.00019178,2]
[330365114,1719335452778,-500.0,0.00019178,2]
[330365115,1719335452787,-500.0,0.00019178,2]
[330365116,1719335452796,-3701.28,0.00019178,2]
[330365117,1719335452806,-243.12722252,0.00019178,2]
[330365118,1719335452820,-358.515,0.00019178,2]
[330365119,1719335452899,-271.205,0.00019178,2]
[330365120,1719335452910,-575.85277748,0.00019178,2]
[330365121,1719335452920,-500.0,0.00019178,2]
[330365122,1719335452929,-2847.87,0.00019178,2]
[330365123,1719335452944,-595.96,0.00019178,2]
[330365124,1719335452953,-500.0,0.00019178,2]
[330365125,1719335452963,-916.2,0.00019178,2]
[330365126,1719335452972,-240.83103531,0.00019178,2]
[330365127,1719335452984,-259.16896469,0.00019178,2]
[330365128,1719335452994,-500.0,0.00019178,2]
[330365129,1719335453004,-500.0,0.00019178,2]
[330365130,1719335453014,-500.0,0.00019178,2]
[330365131,1719335453023,-666.28,0.00019178,2]
[330365132,1719335453033,-5160.51,0.00019178,2]
[330365133,1719335453043,-500.0,0.00019178,2]
[330365134,1719335453054,-500.0,0.00019178,2]
[330365135,1719335453063,-2757.98,0.00019178,2]
[330365136,1719335453072,-500.0,0.00019178,2]
[330365137,1719335453082,-866.01,0.00019178,2]
[330365138,1719335453092,-500.0,0.00019178,2]
[330365139,1719335453101,-423.06996876,0.00019178,2]
[330365140,1719335453112,-5592.35,0.00019178,2]
[330365141,1719335453123,-500.0,0.00019178,2]
[330365142,1719335453132,-902.07,0.00019178,2]
[330365143,1719335453141,-52911.64,0.00019178,2]
[330365144,1719335453151,-500.0,0.00019178,2]
[330365145,1719335453160,-500.0,0.00019178,2]
[330365146,1719335453170,-634.27,0.00019178,2]
[330365147,1719335453179,-973.48,0.00019178,2]
[330365148,1719335453189,-500.0,0.00019178,2]
[330365149,1719335453198,-500.0,0.00019178,2]
[330365150,1719335453207,-500.0,0.00019178,2]
[330365151,1719335453217,-500.0,0.00019178,2]
[330365152,1719335453227,-1103.83,0.00019178,2]
[330365153,1719335453236,-500.0,0.00019178,2]
[330365154,1719335453245,-500.0,0.00019178,2]
[330365155,1719335453255,-1339.95,0.00019178,2]
[330365156,1719335453264,-3734.79,0.00019178,2]
[330365157,1719335453273,-500.0,0.00019178,2]
[330365158,1719335453283,-500.0,0.00019178,2]
[330365159,1719335453292,-2500.81,0.00019178,2]
[330365160,1719335453303,-500.0,0.00019178,2]
[330365161,1719335453315,-500.0,0.00019178,2]
[330365162,1719335453324,-1536.92,0.00019178,2]
[330365163,1719335453334,-500.56804788,0.00019178,2]
[330365164,1719335453343,-4504.75,0.00019178,2]
[330365165,1719335453354,-720.9,0.00019178,2]
[330365166,1719335453363,-672.0,0.00019178,2]
[330365167,1719335453372,-587.5,0.00019178,2]
[330365168,1719335453382,-485.55687228,0.00019178,2]
[330365169,1719335453393,-500.0,0.00019178,2]
[330365170,1719335453404,-10194.85,0.00019178,2]
[330365171,1719335453413,-635.33665665,0.00019178,2]
[330365172,1719335453422,-500.0,0.00019178,2]
[330365173,1719335453432,-1700.42,0.00019178,2]
[330365174,1719335453443,-500.0,0.00019178,2]
[330365175,1719335453452,-500.0,0.00019178,2]
[330365176,1719335453461,-1916.87,0.00019178,2]
[330365177,1719335453471,-500.0,0.00019178,2]
[330365178,1719335453483,-2522.45,0.00019178,2]
[330365179,1719335453493,-500.0,0.00019178,2]
[330365180,1719335453504,-500.0,0.00019178,2]
[330365181,1719335453513,-649.53,0.00019178,2]
[330365182,1719335453523,-850.44,0.00019178,2]
[330365183,1719335453534,-3081.81,0.00019178,2]
[330365184,1719335453544,-500.0,0.00019178,2]
[330365185,1719335453553,-668.58,0.00019178,2]
[330365186,1719335453562,-600.1,0.00019178,2]
[330365187,1719335453572,-1018.18,0.00019178,2]
[330365188,1719335453581,-1223.11,0.00019178,2]
[330365189,1719335453590,-500.0,0.00019178,2]
[330365190,1719335453599,-500.0,0.00019178,2]
[330365191,1719335453608,-500.0,0.00019178,2]
[330365192,1719335453617,-500.0,0.00019178,2]
[330365193,1719335453627,-593.16,0.00019178,2]
[330365194,1719335453636,-3882.26,0.00019178,2]
[330365195,1719335453645,-500.0,0.00019178,2]
[330365196,1719335453655,-527.31046192,0.00019178,2]
[330365197,1719335453664,-1407.77,0.00019178,2]
[330365198,1719335453673,-500.0,0.00019178,2]
[330365199,1719335453683,-500.79570724,0.00019178,2]
[330365200,1719335453692,-500.0,0.00019178,2]
[330365201,1719335453701,-518.13,0.00019178,2]
[330365202,1719335453711,-500.0,0.00019178,2]
[330365203,1719335453720,-500.0,0.00019178,2]
[330365204,1719335453729,-1039.74,0.00019178,2]
[330365205,1719335453739,-1402.87,0.00019178,2]
[330365206,1719335453748,-902.9,0.00019178,2]
[330365207,1719335453757,-500.0,0.00019178,2]
[330365208,1719335453766,-4024.0,0.00019178,2]
[330365209,1719335453776,-893.71,0.00019178,2]
[330365210,1719335453785,-500.0,0.00019178,2]
[330365211,1719335453794,-1198.06,0.00019178,2]
[330365212,1719335453804,-500.0,0.00019178,2]
[330365213,1719335453813,-599.41,0.00019178,2]
[330365214,1719335453822,-6100.4,0.00019178,2]
[330365215,1719335453832,-500.0,0.00019178,2]
[330365216,1719335453841,-529.18,0.00019178,2]
[330365217,1719335453850,-500.0,0.00019178,2]
[330365218,1719335453860,-340.81667693,0.00019178,2]
[330365219,1719335453869,-500.0,0.00019178,2]
[330365220,1719335453879,-500.0,0.00019178,2]
[330365221,1719335453890,-14260.75,0.00019178,2]
[330365222,1719335453899,-500.0,0.00019178,2]
[330365223,1719335453908,-500.338546,0.00019178,2]
[330365224,1719335453918,-540.79808868,0.00019178,2]
[330365225,1719335453927,-318.00837203,0.00019178,2]
[330365226,1719335455100,-275.49999984,0.00019178,2]
[330365227,1719335455112,-714.31162813,0.00019178,2]
[330365228,1719335455122,-500.0,0.00019178,2]
[330365229,1719335455132,-1433.68,0.00019178,2]
[330365230,1719335455141,-500.0,0.00019178,2]
[330365231,1719335455154,-215.12549327,0.00019178,2]
[330365232,1719335455166,-284.87450673,0.00019178,2]
[330365233,1719335455176,-500.0,0.00019178,2]
[330365234,1719335455187,-96.34213596,0.00019178,2]
[330365235,1719335455200,-403.65786404,0.00019178,2]
[330365236,1719335455211,-49.34213596,0.00019178,2]
[330365237,1719335455223,-450.65786404,0.00019178,2]
[330365238,1719335455233,-500.0,0.00019178,2]
[330365239,1719335455242,-157.02473433,0.00019178,2]
[330365240,1719335455254,-1405.89526567,0.00019178,2]
[330365241,1719335455264,-978.6,0.00019178,2]
[330365242,1719335455273,-500.0,0.00019178,2]
[330365243,1719335455283,-500.0,0.00019178,2]
[330365244,1719335455292,-2242.57,0.00019178,2]
[330365245,1719335455303,-1065.71,0.00019178,2]
[330365246,1719335455315,-500.0,0.00019178,2]
[330365247,1719335455324,-500.0,0.00019178,2]
[330365248,1719335455334,-500.0,0.00019178,2]
[330365249,1719335455343,-627.01,0.00019178,2]
[330365250,1719335455353,-500.0,0.00019178,2]
[330365251,1719335455362,-954.41,0.00019178,2]
[330365252,1719335455372,-500.0,0.00019178,2]
[330365253,1719335455382,-500.0,0.00019178,2]
[330365254,1719335455391,-500.0,0.00019178,2]
[330365255,1719335455401,-3955.09,0.00019178,2]
[330365256,1719335455410,-500.0,0.00019178,2]
[330365257,1719335455419,-2880.4,0.00019178,2]
[330365258,1719335455428,-500.0,0.00019178,2]
[330365259,1719335455437,-500.0,0.00019178,2]
[330365260,1719335455446,-500.0,0.00019178,2]
[330365261,1719335455455,-1649.76,0.00019178,2]
[330365262,1719335455464,-1052.38,0.00019178,2]
[330365263,1719335455474,-2590.67,0.00019178,2]
[330365264,1719335455485,-500.0,0.00019178,2]
[330365265,1719335455495,-1013.18,0.00019178,2]
[330365266,1719335455504,-1210.36,0.00019178,2]
[330365267,1719335455514,-6184.66,0.00019178,2]
[330365268,1719335455523,-4951.54,0.00019178,2]
[330365269,1719335455532,-1176.74,0.00019178,2]
[330365270,1719335455541,-500.0,0.00019178,2]
[330365271,1719335455550,-2000.0,0.00019178,2]
[330365272,1719335455560,-500.0,0.00019178,2]
[330365273,1719335455569,-679.28,0.00019178,2]
[330365274,1719335455578,-500.0,0.00019178,2]
[330365275,1719335455589,-978.81,0.00019178,2]
[330365276,1719335455599,-5060.67,0.00019178,2]
[330365277,1719335455609,-3297.79,0.00019178,2]
[330365278,1719335455618,-583.18,0.00019178,2]
[330365279,1719335455628,-500.0,0.00019178,2]
[330365280,1719335455637,-586.12913309,0.00019178,2]
[330365281,1719335455646,-500.0,0.00019178,2]
[330365282,1719335455656,-500.0,0.00019178,2]
[330365283,1719335455665,-14534.06,0.00019178,2]
[330365284,1719335455674,-3289.15,0.00019178,2]
[330365285,1719335455683,-4953.91,0.00019178,2]
[330365286,1719335455696,-500.0,0.00019178,2]
[330365287,1719335455705,-500.0,0.00019178,2]
[330365288,1719335455714,-500.0,0.00019178,2]
[330365289,1719335455726,-929.94,0.00019178,2]
[330365290,1719335455736,-1821.75,0.00019178,2]
[330365291,1719335455746,-500.0,0.00019178,2]
[330365292,1719335455755,-500.0,0.00019178,2]
[330365293,1719335455764,-500.0,0.00019178,2]
[330365294,1719335455774,-500.0,0.00019178,2]
[330365295,1719335455783,-500.0,0.00019178,2]
[330365296,1719335455793,-500.0,0.00019178,2]
[330365297,1719335455802,-500.0,0.00019178,2]
[330365298,1719335455813,-500.0,0.00019178,2]
[330365299,1719335455822,-500.0,0.00019178,2]
[330365300,1719335455831,-749.37,0.00019178,2]
[330365301,1719335455841,-884.53,0.00019178,2]
[330365302,1719335455851,-500.0,0.00019178,2]
[330365303,1719335455861,-500.0,0.00019178,2]
[330365304,1719335455870,-761.52,0.00019178,2]
[330365305,1719335455880,-500.0,0.00019178,2]
[330365306,1719335455889,-500.0,0.00019178,2]
[330365307,1719335455899,-1277.24,0.00019178,2]
[330365308,1719335455908,-626.25,0.00019178,2]
[330365309,1719335455917,-1279.73,0.00019178,2]
[330365310,1719335455926,-19472.6,0.00019178,2]
[330365311,1719335455938,-501.08614619,0.00019178,2]
[330365312,1719335455947,-1317.93,0.00019178,2]
[330365313,1719335455955,-1108.34,0.00019178,2]
[330365314,1719335455964,-1936.93,0.00019178,2]
[330365315,1719335455973,-500.0,0.00019178,2]
[330365316,1719335455982,-500.0,0.00019178,2]
[330365317,1719335455991,-500.0,0.00019178,2]
[330365318,1719335456000,-3272.71,0.00019178,2]
[330365319,1719335456009,-661.1,0.00019178,2]
[330365320,1719335456018,-500.0,0.00019178,2]
[330365321,1719335456028,-500.0,0.00019178,2]
[330365322,1719335456038,-819.26,0.00019178,2]
[330365323,1719335456047,-500.0,0.00019178,2]
[330365324,1719335456056,-1599.82,0.00019178,2]
[330365325,1719335456066,-297.49792076,0.00019178,2]
[330365326,1719335456091,-2520.60207924,0.00019178,2]
[330365327,1719335456100,-500.0,0.00019178,2]
[330365328,1719335456110,-500.0,0.00019178,2]
[330365329,1719335456119,-500.0,0.00019178,2]
[330365330,1719335456128,-5346.08,0.00019178,2]
[330365331,1719335456138,-500.0,0.00019178,2]
[330365332,1719335456147,-500.0,0.00019178,2]